Cogmind - Beta 16 @@@ ROGUE MODE // 2026.01.11 @ 15:41:57 Player: beter Result: Destroyed by T1-NN6(R) with Subdweller Laser Performance ------------- Evolutions (0) 0 Regions Visited (2) 400 Robots Destroyed (22) 110 Value Destroyed (527) 527 Prototype IDs (0) 0 Alien Tech Used (0) 0 Bonus (0) 0 TOTAL SCORE: 1037 Bonus ------- None Cogmind --------- Core Integrity 0/250 Matter 257/300 Energy 256/265 System Corruption 2% Temperature Cool (6) Movement Walking (190) Ox1 Location -10/Subcaves Parts ------- > --- POWER (1) -------- Reinforced Ion Engine > --- PROPULSION (2) --- Aluminum Leg Aluminum Leg > --- UTILITY (2) ------ Heat Sink Small Storage Unit > --- WEAPON (2) ------- Particle Gun (fused) Particle Gun > --- INVENTORY (8) ---- Reinforced Ion Engine Aluminum Leg Large Storage Unit Medium Matter Pod (100) Propulsion Shielding Peak State ------------ > --- POWER ------------ Reinforced Ion Engine > --- PROPULSION ------- Aluminum Leg Aluminum Leg > --- UTILITY ---------- Heat Sink Small Storage Unit > --- WEAPON ----------- Particle Gun Particle Gun > --- INVENTORY -------- Reinforced Ion Engine Aluminum Leg Aluminum Leg Large Storage Unit Medium Matter Pod Propulsion Shielding Particle Gun Light Assault Rifle [Rating: 11] Favorites ----------- Power Reinforced Ion Engine Engine Reinforced Ion Engine Propulsion Aluminum Leg Leg Aluminum Leg Wheel Wheel Utility Small Storage Unit Device Heat Sink Storage Small Storage Unit Protection Light Armor Plating Weapon Light Assault Rifle Energy Gun Particle Gun Ballistic Gun Light Assault Rifle Launcher Grenade Launcher Build | -11 -10 -10 ------- Run | Yrd Mat Sub Slots Evolved . | . . . Power . | . . . Propulsion . | . . . Utility . | . . . Weapon . | . . . Parts Attached 25 | 7 15 3 Power 3 | 1 2 . Engine 3 | 1 2 . Core . | . . . Reactor . | . . . Propulsion 8 | 2 5 1 Treads . | . . . Leg 6 | . 5 1 Wheel 2 | 2 . . Hover . | . . . Flight . | . . . Utility 4 | 1 3 . Device 1 | . 1 . Storage 1 | 1 . . Processor . | . . . Hackware . | . . . Protection 2 | . 2 . Artifact . | . . . Weapon 10 | 3 5 2 Energy Gun 4 | 1 2 1 Energy Cannon . | . . . Ballistic Gun 5 | 2 3 . Ballistic Cannon . | . . . Launcher 1 | . . 1 Special Weapon . | . . . Impact Weapon . | . . . Slashing Weapon . | . . . Piercing Weapon . | . . . Special Melee Weapon . | . . . Unidentified Prototypes . | . . . Parts Lost 5 | . 2 3 Power 1 | . 1 . Propulsion 1 | . . 1 Utility 1 | . 1 . Weapon 2 | . . 2 Highest Loss Streak 3 | . 2 3 To Critical Strikes . | . . . Average Backups 7 | 3 7 7 Power 1 | . 1 1 Propulsion 2 | 2 2 1 Utility 1 | . 1 3 Weapon 1 | . 1 1 Tool/Special . | . . . Unused Backups 9 | . 5 4 Power 2 | . 1 1 Propulsion 3 | . 2 1 Utility 3 | . 1 2 Weapon . | . . . Tool/Special 1 | . 1 . Average Slot Usage (%) 98 | . 99 98 Engine 14 | . 14 14 Leg 23 | . 22 26 Wheel 4 | . 4 . Device 10 | . 9 14 Storage 14 | . 14 14 Protection 3 | . 3 . Energy Gun 11 | . 11 15 Ballistic Gun 16 | . 16 10 Peak Build Rating 11 | 6 11 10 Average Rating 8 | 4 8 9 On Entrance 5 | . 6 10 Avg Prop Armor Cover (%) . | . . . Naked Turns . | . . . Heaviest Build 22 | 13 20 22 Greatest Support 26 | 26 26 20 Greatest Overweight (x) 1 | . 1 1 Average Overweight (x) . | . . . Largest Inventory Capacity 8 | 8 8 8 Average Capacity 7 | 6 8 8 Most Carried 8 | 6 8 8 Average Carried 7 | 3 7 7 Final Capacity 8 | 8 8 8 Final Carried 8 | 6 8 5 Class Distribution -------------------- 57% | Mutant 42% | Scavenger-Mutant Dominant Class ---------------- Mutant | -10/Materials Mutant | -10/Subcaves Resources | -11 -10 -10 ----------- Run | Yrd Mat Sub Matter Collected 671 | 250 421 . Remotely . | . . . Salvage Created 609 | . 525 84 Parts 40 | . 34 6 Haulers Intercepted . | . . . Recyclers Shooed . | . . . Parts Field Recycled . | . . . Retrieved Matter . | . . . Parts Self-Destructed . | . . . Prevented . | . . . Parts Restored . | . . . Kills | -11 -10 -10 ------- Run | Yrd Mat Sub Combat Hostiles Destroyed 20 | . 18 2 Guns 20 | . 18 2 Classes Destroyed 5 | . 5 . Operator 1 | . 1 . Watcher 1 | . 1 . Swarmer 9 | . 9 . Grunt 8 | . 8 . Subdweller 3 | . 1 2 Best Kill Streak 6 | . 6 2 Combat Bots Only 6 | . 6 2 Max Kills in Single Turn 1 | . 1 1 Gunslinging . | . . . Exploded . | . . . Melee . | . . . Uniques/NPCs Destroyed . | . . . Combat | -11 -10 -10 -------- Run | Yrd Mat Sub Hostile Shots Fired 125 | . 92 33 Missed 28 | . 23 5 Hits 97 | . 69 28 Projectile 97 | . 69 28 Critical Strikes 2 | . 1 1 Damage Taken 1280 | . 664 616 Core 256 | . 137 119 Absorbed by Shields . | . . . Regen/Repaired (Parts) 48 | . 48 . Core Remaining (%) 100 | 100 . . Volleys Fired 78 | . 65 13 Largest 2 | . 2 2 Hottest 130 | . 130 130 Shots Fired 154 | . 130 24 Gun 153 | . 130 23 Cannon . | . . . Launcher 1 | . . 1 Special . | . . . Kinetic 92 | . 84 8 Thermal 61 | . 46 15 Explosive 1 | . . 1 Electromagnetic . | . . . Robot Hit Streak 11 | . 11 7 Robot Miss Streak 6 | . 6 1 Penetration Max . | . . . Secondary Targets 1 | . . 1 Max Gunslinging Chain 1 | . . 1 Shots Hit Robots 85 | . 66 19 Core Hits 39 | . 34 5 Critical Kills . | . . . Critical Parts Destroyed 1 | . 1 . Critical Strikes 1 | . 1 . Destroy 1 | . 1 . Melee Attacks . | . . . Impact . | . . . Slashing . | . . . Piercing . | . . . Sneak Attacks . | . . . Combat Hostiles . | . . . Follow-up Attacks . | . . . Damage Inflicted 996 | . 772 224 Guns 983 | . 759 224 Cannons . | . . . Explosions . | . . . Melee . | . . . Ramming 13 | . 13 . Kinetic 384 | . 349 35 Thermal 599 | . 410 189 Explosive . | . . . Electromagnetic . | . . . Impact . | . . . Slashing . | . . . Piercing . | . . . Highest Corruption 2 | . 2 2 Average Corruption 2 | . 2 2 Corruption Purged . | . . . Corruption Blocked . | . . . Effects 11 | . 7 4 Message Errors 2 | . 1 1 Matter Fused 3 | . 3 . Heat Flow Errors 2 | . 1 1 Parts Fused 1 | . 1 . Alerts 1 | . 1 . Weapon Failures 2 | . . 2 Overload Shots . | . . . Overflow Damage . | . . . Projectiles . | . . . Explosions . | . . . Melee . | . . . Knockbacks 1 | . 1 . Impact 1 | . 1 . Kinetic . | . . . Secondary . | . . . Self-Inflicted Damage 34 | . 3 31 Shots 1 | . . 1 Rammed 2 | . 2 . Targets Rammed 3 | . 3 . Kicked 1 | . 1 . Crushed . | . . . Highest Temperature 249 | . 230 249 Average Temperature 43 | . 42 68 Received Heat Transfer 273 | . 159 114 Siege Activations . | . . . Martial Activations . | . . . Shielding Activations . | . . . Robots Disrupted . | . . . Combat Hostiles . | . . . Robots Corrupted . | . . . Combat Hostiles . | . . . Parts Fried . | . . . Impact Corruptions . | . . . Robots Melted . | . . . Combat Hostiles . | . . . Parts Melted . | . . . Heat Transferred 1396 | . 952 444 Parts Sabotaged . | . . . Parts Stolen . | . . . Parts Stripped . | . . . Power Chain Reactions . | . . . Alert | -11 -10 -10 ------- Run | Yrd Mat Sub Maximum Alert Level . | . . . Low Security (%) 100 | 100 100 . Level 1 . | . . . Level 2 . | . . . Level 3 . | . . . Level 4 . | . . . Level 5 . | . . . High Security . | . . . Max Security . | . . . Peak Influence 170 | . 170 . Initial . | . . . Average 95 | . 103 . Influence Increases 504 | . 504 . Destroy 0b10 Robot/C 340 | . 340 . Destroy 0b10 Robot/NC 10 | . 10 . Destroy Leader 72 | . 72 . Successful Hack 7 | . 7 . Lose Combat Pursuer 75 | . 75 . Influence Decreases 500 | . 380 120 Entered New Map 60 | . . 60 Time Decay 390 | . 360 30 Lost Part 50 | . 20 30 Squads Dispatched 3 | . 3 . Investigation 1 | . 1 . Extermination . | . . . Reinforcement 2 | . 2 . Assault . | . . . Garrison . | . . . Intercept . | . . . Searches Triggered . | . . . Construction Impeded . | . . . Haulers Reinforced . | . . . Active Scanning Responses . | . . . Cargo Convoy Interrupts . | . . . Stealth | -11 -10 -10 --------- Run | Yrd Mat Sub Distress Signals 4 | . 4 . Communications Jammed . | . . . Distress Signals . | . . . Times Spotted 32 | . 29 3 Peak Tracking Total 8 | . 8 3 Tactical Retreats 5 | . 5 . Traps | -11 -10 -10 ------- Run | Yrd Mat Sub Traps Triggered 1 | . 1 . Indirectly . | . . . Trap Hack Attempts . | . . . Triggered . | . . . Disarmed . | . . . Reprogrammed . | . . . Reused . | . . . Traps Extracted . | . . . Installed . | . . . Triggered . | . . . Machines | -11 -10 -10 ---------- Run | Yrd Mat Sub Machines Disabled . | . . . Max in Single Turn . | . . . Machines Repaired . | . . . Machines Dismantled . | . . . Machines Sabotaged . | . . . Overloaded Fab Kills . | . . . Hacking | -11 -10 -10 --------- Run | Yrd Mat Sub Machines Accessed 3 | . 3 . Terminals 2 | . 2 . Fabricators . | . . . Repair Stations 1 | . 1 . Recycling Units . | . . . Scanalyzers . | . . . Garrison Access . | . . . Total Hacks 10 | . 10 . Successful 5 | . 5 . Failed 5 | . 5 . Catastrophic 1 | . 1 . Database Lockouts . | . . . Manual 4 | . 4 . Terminals 7 | . 7 . Fabricators . | . . . Repair Stations 3 | . 3 . Recycling Units . | . . . Scanalyzers . | . . . Garrison Access . | . . . Terminal Hacks 3 | . 3 . Emergency Access Points 1 | . 1 . Terminal Index 1 | . 1 . Recall Investigation 1 | . 1 . Fabricator Hacks . | . . . Repair Station Hacks 2 | . 2 . Scan Component 1 | . 1 . Repair 1 | . 1 . Recycling Unit Hacks . | . . . Scanalyzer . | . . . Garrison Access Hacks . | . . . Unauthorized Hacks . | . . . Terminals . | . . . Fabricators . | . . . Repair Stations . | . . . Recycling Units . | . . . Scanalyzers . | . . . Garrison Access . | . . . Data Cores Recovered . | . . . Used . | . . . Hacking Detections 3 | . 3 . Full Trace Events . | . . . Feedback Events . | . . . Feedback Blocked . | . . . Robot Schematics Acquired . | . . . Robots Built . | . . . Authchips . | . . . Time . | . . . Total Robot Build Rating . | . . . Part Schematics Acquired . | . . . Parts Built . | . . . Authchips . | . . . Time . | . . . Total Part Build Rating . | . . . Part Studies Acquired . | . . . Parts Repaired 1 | . 1 . Time 26 | . 26 . Parts Recycled . | . . . Recycled Matter . | . . . Retrieved Matter . | . . . Retrieved Components . | . . . Parts Scanalyzed . | . . . Part Schematics Acquired . | . . . Parts Damaged . | . . . Bothacking | -11 -10 -10 ------------ Run | Yrd Mat Sub Used RIF Installer . | . . . Robots Hacked . | . . . Non-combat . | . . . Combat . | . . . Robot Hacks Applied . | . . . Relay Couplers Released . | . . . Fabnet Peak Effective % . | . . . Robots Rewired . | . . . Allies Hacked . | . . . Hacks Repelled . | . . . Allies | -11 -10 -10 -------- Run | Yrd Mat Sub Total Allies . | . . . Largest Group . | . . . Highest-Rated Group . | . . . Highest-Rated Ally . | . . . Total Orders . | . . . Ally Attacks . | . . . Total Damage . | . . . Kills . | . . . Allies Corrupted . | . . . Allies Melted . | . . . Intel | -11 -10 -10 ------- Run | Yrd Mat Sub Active Infowar (turns) . | . . . Robot Analysis Total . | . . . Derelict Logs Recovered . | . . . Drone Launches . | . . . Drone Recoveries . | . . . Exploration | -11 -10 -10 ------------- Run | Yrd Mat Sub Turns Passed 1048 | 74 903 71 Spaces Moved 604 | 65 515 24 Core 2 | 2 . . Treads . | . . . Legs 464 | . 440 24 Wheels 138 | 63 75 . Hover . | . . . Flight . | . . . Fastest Speed 50 | 50 90 120 Average Speed 113 | 88 115 125 Slowest Speed 190 | 90 190 190 Overloaded Moves . | . . . Propulsion Burnouts . | . . . Robots Hopped . | . . . Potential Cave-ins . | . . . Cave-ins Triggered . | . . . Exploration Rate (%) 24 | 4 61 7 Regions Visited 2 Branch Regions 1 Pre-discovered Areas . | . . . Known Exits Taken . | . . . Unknown Exits Taken 2 | 1 1 . Scrap Searched . | . . . Spaces Dug . | . . . Terrain Destroyed 3 | . . 3 Melee . | . . . Projectile . | . . . AOE 3 | . . 3 Terrain Rammed . | . . . Walls Destroyed . | . . . Machines Disabled . | . . . Actions | -11 -10 -10 --------- Run | Yrd Mat Sub Total 827 | 77 709 41 Wait 81 | . 81 . Move 602 | 64 514 24 Hop . | . . . Pick Up 14 | 6 8 . Fast Attach 18 | 6 12 . Attach 5 | . 2 3 Detach 1 | . 1 . Swap 7 | 1 5 1 Drop 18 | . 18 . Fire 78 | . 65 13 Melee . | . . . Ram 2 | . 2 . Kick 1 | . 1 . Crush . | . . . Escape Stasis . | . . . Rewire . | . . . Trap . | . . . Miscellaneous . | . . . Route ------- -11/Scrapyard -10/Materials (discovered 3 exits: [*Mat] / [*Min] / [*Sub]) -10/Subcaves History --------- Turn | Location | Event 14 | -11/Scrapyard | Discovered new exit (range 15) 75 | -11/Scrapyard | Entered Materials 399 | -10/Materials | Discovered new exit (range 3) 529 | -10/Materials | Repaired Aluminum Leg 675 | -10/Materials | Derelicts attacked the area 822 | -10/Materials | Core integrity fell below 50% 889 | -10/Materials | Discovered new exit (range 10) 970 | -10/Materials | Discovered new exit (range 8) 971 | -10/Materials | Build established: Mutant 978 | -10/Materials | Entered Subcaves 1005 | -10/Subcaves | Ambushed by Subdwellers from Twisted Machinery 1041 | -10/Subcaves | Core integrity fell below 20% 1049 | -10/Subcaves | Destroyed by T1-NN6(R) with Subdweller Laser Last Messages --------------- AMBIENT_HEAT=-10 GOAL=ESCAPE 00996_ System corrupted: Heat flow error (+293). 01005_ YE-7B0(R) emerges from the Twisted Machinery. 01010_ Grenade Launcher destroyed. 01014_ MRSZELWM#O4YEP7/|YH% PYBV82 01020_ System corrupted: Particle Gun failed to cycle. 01028_ YE-7B0(R) destroyed. 01028_ Switching to secondary target: NO-GCT(R). 01028_ Aluminum Leg destroyed. 01038_ Lgt. Assault Rifle destroyed. 01039_ Subatomizers dissect the Disposable Heat Sink. 01045_ System corrupted: Particle Gun failed to cycle. 01048_ NO-GCT(R) destroyed. 01049_ Subatomizers dissect the Disposable Heat Sink. Map ----- +----------------------------------------------------+ | ?????????????????????????????????????????????????? | | ?????????????????????????????????????????????????? | | ?????????????????????????????????????????????????? | | ?????????????????????????????????????????????????? | | ?????????????????????????????????????????????????? | | ?????????????????????????????????????????????????? | | ??????????????????????????????????? ?????????? | | ??????????????????????????????????? ????????? | | ?????????????????????????????????? ????????? | | ?????????????????????????????????? #????????? | | ?????????????????????????????????? ##???????? | | ???????????????????????##???????? #####???? | | ???????????????????????# ????????? ????? | | ??????????????????????## ????????? ?????? | | ??????????????????????# ?????????? #??????? | | ????????????????????### ?????????? #??????? | | ????????????????????# ####??????# #??????? | | ?????????????????????# ???#### #???????? | | ?????????????????????# #??## #????????? | | ????????????????????## #?## ##???????? | | ???????????????????## ### ##??????? | | ??????????????????## ## ####???? | | ??????????????????# ##??? | | ???????????????????# ### ### | | ???????????????????# ### | | ???????????????????## @ | | ????????????????????# | | ????????????????? ! *%! ### ### | | ?????????????? "R%* ! ## " ?## ##?# | | ????????????? "[=""### ##?#####?## | | ??????????????##"" ???# ???????## ## | | ???????????????####????## #?????### ##? | | ???????????????????????? ?##### ###?? | | ???????????????????????? ?#" ##???? | | ???????????????????????? ?#" #????? | | ???????????????????????# ?### #### #????? | | ???????????????????????# ??#########???##????? | | ???????????????????????# ????????????????????? | | ???????????????????????# "?????????????????????? | | ????????????????????????##""?????????????????????? | | ?????????????????????????????????????????????????? | | ?????????????????????????????????????????????????? | | ?????????????????????????????????????????????????? | | ?????????????????????????????????????????????????? | | ?????????????????????????????????????????????????? | | ?????????????????????????????????????????????????? | | ?????????????????????????????????????????????????? | | ?????????????????????????????????????????????????? | | ?????????????????????????????????????????????????? | | ?????????????????????????????????????????????????? | +----------------------------------------------------+ Best States ------------- Heat Dissipation 35 Energy Generation 12 Energy Capacity 265 Matter Stores 300 Matter Capacity 300 Sight Range 16 Terrain Scan Density 10 Armor Coverage 150 Propulsion Shielding 33 Evasion (%) 55 Item Schematics ----------------- None Robot Schematics ------------------ None Fabricated ------------ Nothing Repaired ---------- Aluminum Leg | 46% | -10/Materials Studied --------- None Alien Tech Used ----------------- None Achievements -------------- None Challenges ------------ None Game ------ Seed SlugSingularityBank Manual? 0 Play Time 00:17:16 Cumulative 29.0 hours Start 2026.01.11 @ 15:20:18 End 2026.01.11 @ 15:41:57 Sessions 1 Manual Loads 0 Difficulty Rogue Special Mode None Game No. 33 Rogue 33 Adventurer 0 Explorer 0 Win Type - Total 1 Types 1/0/0/0/0/0/0/0/0/0 Lore% 18 Gallery% 33 Achievement% 20 Wizard Run 0 Options --------- Layout 1 ASCII 0 Keyboard 0 Movement Mouse Keybinds 0 Fullscreen 1 Font 32/SmallcapsGlow Map View 50x35 Zoom Use 0% Tactical HUD 1 Map Filters NONE Filters NONE Steam X RUN: 082812a0-9ecc-44ae-8bd2-4a2703e61f3d